Posting Date,Expenditure Area,Supplier Name,Amount,Expense Type,Reason for Expense
11-Dec-20,Development,J P Chick & Partne, 120.00 ,Non Contracted_Professional Services,Calculations assessment 20/00633/OTH
08-Dec-20,Development,"Www,eastsuffolk.Gov.Uk", 192.00 ,Non Contracted_Professional Services,Partnership Inspections 
22-Dec-20,Development,Www.Midsuffolk.Gov.Uk, 160.00 ,Non Contracted_Professional Services,Partnership Inspections 
30-Dec-20,Housing & Community Services,Amznmktplace, 108.14 ,Publications - Purchase,Books & Phone cases & screen protectors
30-Dec-20,Housing & Community Services,Amznmktplace, 92.01 ,Telecommunication Costs - Mobiles,Books & Phone cases & screen protectors
15-Dec-20,Housing & Community Services,Suffolk County Council, 300.00 ,Capital Expenditure,Drop kerb fee
22-Dec-20,Housing & Community Services,Www.Banneruk.Com, 100.45 ,Stationery,Stationery
22-Dec-20,Housing & Community Services,Tvlicensing.Co.Uk, 157.50 ,Subscriptions - Service Related,TV Licence
30-Dec-20,Housing & Community Services,Amznmktplace, 94.58 ,Telecommunication Costs - Mobiles,Various items for mobiles/PDA's
16-Dec-20,People & Governance,Www.Aat-Org.Uk, 171.00 ,Non Contracted_Professional Services,AAT membership 
16-Dec-20,People & Governance,Acca, 258.00 ,Non Contracted_Professional Services,ACCA membership fee 
18-Dec-20,People & Governance,Isaca, 171.69 ,Non Contracted_Professional Services,ISACA annual membership fee
31-Dec-20,Culture & Environment Services,Tahdah Verified, 140.00 ,Training Expenses,ATP fees
31-Dec-20,Culture & Environment Services,Tahdah Verified, 200.00 ,Training Expenses,ATP Fees
16-Dec-20,Culture & Environment Services,Firstaid4less.Co.Uk, 98.55 ,Training Expenses,first aid items for training
16-Dec-20,Culture & Environment Services,Www.Lifesaversdirect, 328.33 ,Training Expenses,training aids
18-Dec-20,Culture & Environment Services,Www.Lifesaversdirect, 91.00 ,Training Expenses,training aids
18-Dec-20,Culture & Environment Services,Www.Lifesaversdirect, 273.00 ,Training Expenses,training aids
21-Dec-20,Culture & Environment Services,Www.Lifesaversdirect, 46.50 ,Training Expenses,training aids
07-Dec-20,Culture & Environment Services,Wilko Retail Limited, 2.92 ,Cleaning Supplies,batteries
10-Dec-20,Culture & Environment Services,Timpson Ltd, 5.83 ,Cleaning Supplies,key for shopmobility
03-Dec-20,Culture & Environment Services,Post Office Self Servi, 7.15 ,Cleaning Supplies,stamps
04-Dec-20,Culture & Environment Services,Amznmktplace Amazon.Co.Uk, 9.97 ,Equipment / Furniture / Materials,Black Cloth For Altars
30-Dec-20,Culture & Environment Services,Currys Online, 128.32 ,Equipment / Furniture / Materials,Blue tooth PA speaker for chapel
07-Dec-20,Culture & Environment Services,Post Office Counter, 7.15 ,Postage Costs,Postage
03-Dec-20,Culture & Environment Services,Amznmktplace Amazon.Co.Uk, 9.57 ,Equipment / Furniture / Materials,Sticky back plastic for masonry
18-Dec-20,Culture & Environment Services,Amznmktplace, 3.16 ,Equipment / Furniture / Materials,Wall calendar for crem
11-Dec-20,Housing & Community Services,Screwfix Direct, 22.79 ,HRA Special Repairs & Maintenance,15 keys for sanitizer containers
23-Dec-20,Housing & Community Services,Amznmktplace, 187.44 ,Miscellaneous Expenses,2 table top fridges whilst waiting built in replacements 
09-Dec-20,Housing & Community Services,Argos Ltd, 19.96 ,Miscellaneous Expenses,Gwent House replacement bathroom bin
18-Dec-20,Housing & Community Services,Amznmktplace, 49.99 ,HRA Special Repairs & Maintenance,lockable cabinet for sheltered office
18-Dec-20,Housing & Community Services,Amznmktplace, 67.98 ,HRA Special Repairs & Maintenance,lockable cabinet for sheltered offices
18-Dec-20,Housing & Community Services,Amznmktplace, 49.99 ,HRA Special Repairs & Maintenance,lockable cabinet for sheltered scheme office
21-Dec-20,Housing & Community Services,Amznmktplace Amazon.Co.Uk, 41.66 ,HRA Special Repairs & Maintenance,lockable cabinet for sheltered scheme offices
18-Dec-20,Housing & Community Services,Amznmktplace, 66.67 ,HRA Special Repairs & Maintenance,lockable cabinet sheltered scheme offices
04-Dec-20,Housing & Community Services,Post Office Counter, 2.04 ,Stationery,Recorded delivery Scheme TV licence renewal Gwent HSe
01-Dec-20,Housing & Community Services,Cpw Locksmiths And Securi, 80.00 ,HRA Special Repairs & Maintenance,repair/replace/renew lock/keys Reydon House
28-Dec-20,Housing & Community Services,Cpw Locksmiths And Securi, 120.00 ,HRA Special Repairs & Maintenance,repair/replace/renew lock/keys to sheltered properties
10-Dec-20,Culture & Environment Services,Ryman, 29.15 ,Stationery,Laminating pouches & Retail Returns box - covid
24-Dec-20,Culture & Environment Services,Ryman, 4.49 ,Miscellaneous Stock  - Purchases,Planner - WHITTON HUB
01-Dec-20,Housing & Community Services,Royal Society Of Chemi, 143.00 ,Employee Expenses,Annual subscription
07-Dec-20,Housing & Community Services,Tetra Scene Of Crime, 38.33 ,Equipment / Furniture / Materials,Evidence bags
21-Dec-20,Housing & Community Services,Chartered Institute Of En, 45.00 ,Specific Campaigns / Projects expenditure,Outdoor events guidance training 
11-Dec-20,Housing & Community Services,Amazon.Co.Uk, 11.12 ,Equipment / Furniture / Materials,Socket tester
15-Dec-20,Culture & Environment Services,Argos Ltd, 30.83 ,Equipment / Furniture / Materials,dvd player for crematorium
23-Dec-20,Culture & Environment Services,B & Q 1315, 55.19 ,Materials and Supplies - Miscellaneous,grave boards
10-Dec-20,Culture & Environment Services,Rumwoods Ltd, 658.00 ,Materials and Supplies - Miscellaneous,replacement roses
01-Dec-20,Culture & Environment Services,Cobblers And Keys Ltd, 26.67 ,Equipment / Furniture / Materials,New keys for Westerfield Road gents toilets
10-Dec-20,Culture & Environment Services,P And R Locksmiths, 307.33 ,Miscellaneous Stock  - Purchases,Padlocks for Walnut tree Farm
17-Dec-20,Culture & Environment Services,Hussey Knights Ltd, 155.82 ,Miscellaneous Stock  - Purchases,Plans for Alexandra Park play area
09-Dec-20,Culture & Environment Services,Gardeningexpress.Co.Uk, 46.66 ,Materials and Supplies - Miscellaneous,Plants for the African garden
07-Dec-20,Culture & Environment Services,P Tuckwell Ltd, 520.00 ,Equipment / Furniture / Materials,Play Area equipment
24-Dec-20,Culture & Environment Services,Screwfix Direct, 187.94 ,Materials and Supplies - Miscellaneous,Replacement power washer for vehicles
30-Dec-20,Culture & Environment Services,Www.Buildbase.Co.Uk, 314.55 ,Materials and Supplies - Miscellaneous,Rock Salt for paths
15-Dec-20,People & Governance,Zoom.Us 888-799-9666, 23.98 ,Specific Campaigns / Projects expenditure,Virtual Council meetings
15-Dec-20,Finance & Revenues,Www.Cimaglobal.Com, 100.00 ,Employee Expenses,CIMA annual subscription fee 
15-Dec-20,Finance & Revenues,Kaplan Financial Ltd, 75.00 ,Training Expenses,Course material
23-Dec-20,Finance & Revenues,Acca, 258.00 ,Training Expenses,Exam fees
01-Dec-20,Finance & Revenues,Ncs*cima Vue Exam, 110.00 ,Training Expenses,Exam fee
28-Dec-20,Housing & Community Services,Argos Ltd,-25.00 ,Services for Clients,Credit
21-Dec-20,Housing & Community Services,Countrysouth, 800.00 ,Services for Clients,LH 18976 RIA
21-Dec-20,Housing & Community Services,Argos Ltd, 25.00 ,Services for Clients,move in pack
01-Dec-20,Development,Ncx*utilitysearch, 109.02 ,Capital Expenditure,REDACTED
02-Dec-20,Development,Geodesys, 90.80 ,Capital Expenditure,REDACTED
11-Dec-20,Development,Proconferences.Com, 85.00 ,Training Expenses,cpd course
03-Dec-20,Development,Rics Subs UK Cybs, 127.00 ,Employee Expenses,subs
11-Dec-20,Development,Proconferences.Com, 85.00 ,Training Expenses,CPD training
10-Dec-20,Development,Rics Subs UK Cybs, 539.00 ,Employee Expenses,subs
08-Dec-20,Development,Rics Subs UK Cybs, 539.00 ,Employee Expenses,subs
14-Dec-20,Culture & Environment Services,Amznmktplace, 7.48 ,Equipment / Furniture / Materials,Safety stencil
14-Dec-20,Culture & Environment Services,Amznmktplace, 16.48 ,Equipment / Furniture / Materials,Safety stencil
15-Dec-20,Culture & Environment Services,Amznmktplace, 5.41 ,Equipment / Furniture / Materials,Safety stencil
11-Dec-20,Culture & Environment Services,Amazon.Co.Uk, 3.75 ,Materials and Supplies - Miscellaneous,Combination spanner wrenches x 3
21-Dec-20,Development,Thomson Reuters UK Ltd, 66.00 ,GF_Contract Repair & Maintenance,JCT Contract order
16-Dec-20,Culture & Environment Services,Amznmktplace, 6.66 ,Equipment / Furniture / Materials,Protective case for site supervisor phone
24-Dec-20,Culture & Environment Services,The Windscreen Co, 414.00 ,Direct Transport Costs,1/4 GLASS REPAIR TO AV13 OPT- F6810
24-Dec-20,Culture & Environment Services,The Windscreen Co, 48.00 ,Direct Transport Costs,CHIP REPAIR TO AV11 XCR
21-Dec-20,Culture & Environment Services,Amz*appliances Direct,-249.97 ,Computer Equipment - Purchase,REFUND FOR TABLET LK69 BGV
17-Dec-20,Culture & Environment Services,Amznmktplace, 249.97 ,Computer Equipment - Purchase,TABLET FOR LK69 BGV
15-Dec-20,Culture & Environment Services,Amznmktplace, 249.97 ,Computer Equipment - Purchase,TABLET FOR LK70 EAW
16-Dec-20,Culture & Environment Services,Amznmktplace, 39.50 ,Direct Transport Costs,USB CHARGES
16-Dec-20,Culture & Environment Services,Dvla Vehicle Tax, 267.50 ,Parks Vehicle Costs,VEHICLE TAX FOR AP57 VJZ
16-Dec-20,Culture & Environment Services,Dvla Vehicle Tax, 267.50 ,Parks Vehicle Costs,VEHICLE TAX FOR AP57 VKO
17-Dec-20,Culture & Environment Services,Dvla Vehicle Tax, 167.50 ,Parks Vehicle Costs,VEHICLE TAX FOR AU55 GLF
16-Dec-20,Culture & Environment Services,Dvla Vehicle Tax, 267.50 ,Direct Transport Costs,VEHICLE TAX FOR AV61 XLE
16-Dec-20,Culture & Environment Services,Dvla Vehicle Tax, 267.50 ,Direct Transport Costs,VEHICLE TAX FOR AV61 XLX
16-Dec-20,Culture & Environment Services,Dvla Vehicle Tax, 97.50 ,Direct Transport Costs,VEHICLE TAX FOR AV69 XRM
16-Dec-20,Culture & Environment Services,Dvla Vehicle Tax, 302.50 ,Direct Transport Costs,VEHICLE TAX FOR AY69 OJB
16-Dec-20,Culture & Environment Services,Dvla Vehicle Tax, 302.50 ,Direct Transport Costs,VEHICLE TAX FOR AY69 OJC
16-Dec-20,Culture & Environment Services,Dvla Vehicle Tax, 302.50 ,Direct Transport Costs,VEHICLE TAX FOR AY69 OJD
16-Dec-20,Culture & Environment Services,Dvla Vehicle Tax, 302.50 ,Direct Transport Costs,VEHICLE TAX FOR AY69 OJE
17-Dec-20,Culture & Environment Services,Dvla Vehicle Tax, 267.50 ,Parks Vehicle Costs,VEHICLE TAX FOR EG68 OEW
17-Dec-20,Culture & Environment Services,Dvla Vehicle Tax, 267.50 ,Parks Vehicle Costs,VEHICLE TAX FOR EG68 OFO
17-Dec-20,Culture & Environment Services,Dvla Vehicle Tax, 267.50 ,Parks Vehicle Costs,VEHICLE TAX FOR EG68 SPZ
17-Dec-20,Culture & Environment Services,Dvla Vehicle Tax, 267.50 ,Parks Vehicle Costs,VEHICLE TAX FOR EG68 SRO
17-Dec-20,Culture & Environment Services,Dvla Vehicle Tax, 267.50 ,Parks Vehicle Costs,VEHICLE TAX FOR EG68 SRU
17-Dec-20,Culture & Environment Services,Dvla Vehicle Tax, 267.50 ,Parks Vehicle Costs,VEHICLE TAX FOR EG68 SRV
16-Dec-20,Culture & Environment Services,Dvla Vehicle Tax, 267.50 ,Direct Transport Costs,VEHICLE TAX FOR LB67 MHX
16-Dec-20,Culture & Environment Services,Dvla Vehicle Tax, 267.50 ,Direct Transport Costs,VEHICLE TAX FOR NA14 XUS
10-Dec-20,Finance & Revenues,Www.Aat-Org.Uk, 159.00 ,Employee Expenses,AAT Subscription
23-Dec-20,Finance & Revenues,Acca, 258.00 ,Employee Expenses,ACCA Subscription
23-Dec-20,Finance & Revenues,Acca, 258.00 ,Employee Expenses,ACCA Subscription
10-Dec-20,Finance & Revenues,Www.Cimaglobal.Com, 120.00 ,Employee Expenses,CIMA Membership
02-Dec-20,Finance & Revenues,Www.Cimaglobal.Com, 297.00 ,Employee Expenses,CIMA Subscription
08-Dec-20,Finance & Revenues,Service Fees - Fraedom Pty Ltd, 383.15 ,Computer Software - Maintenance,Fraedom Card Fees 01/11/20 to 30/11/20
23-Dec-20,Finance & Revenues,Www.Irrv.Org.Uk, 255.00 ,Employee Expenses,IRRV Subscription
14-Dec-20,Finance & Revenues,Amznmktplace, 20.36 ,Financial Fees & Services,Security USB Key for Access Pay
14-Dec-20,Finance & Revenues,Amznmktplace, 20.36 ,Financial Fees & Services,Security USB Key for Access Pay
14-Dec-20,Finance & Revenues,Amznmktplace, 20.36 ,Financial Fees & Services,Security USB Key for Access Pay
14-Dec-20,Finance & Revenues,Amznmktplace, 20.40 ,Financial Fees & Services,Smart Card Reader for Access Pay 
14-Dec-20,Finance & Revenues,Amznmktplace, 20.40 ,Financial Fees & Services,Smart Card Reader for Access Pay 
14-Dec-20,Finance & Revenues,Amznmktplace, 20.40 ,Financial Fees & Services,Smart Card Reader for Access Pay 
15-Dec-20,Finance & Revenues,Amznmktplace, 20.36 ,Financial Fees & Services,USB Key for Access Pay
03-Dec-20,Culture & Environment Services,W J Green Limited, 39.12 ,Materials and Supplies - Miscellaneous,Arb team - materials and Supplies
11-Dec-20,Culture & Environment Services,Honey Brothers Ltd, 35.75 ,Materials and Supplies - Miscellaneous,Art Lockjack Clutch
03-Dec-20,Culture & Environment Services,Sainsburys S/mkts, 10.83 ,Stationery,Diary & note book
01-Dec-20,Culture & Environment Services,Lloyds At Sainsbur, 10.82 ,Materials and Supplies - Miscellaneous,Flu jab
01-Dec-20,Culture & Environment Services,Lloyds At Sainsbur,-10.82 ,Materials and Supplies - Miscellaneous,Flu jab - refund
28-Dec-20,Culture & Environment Services,Cpw Locksmiths And Securi, 146.05 ,Materials and Supplies - Miscellaneous,"Padlock, keys and chain"
03-Dec-20,Culture & Environment Services,Wwwtudorenvironmentalcou, 139.50 ,Materials and Supplies - Miscellaneous,Rake chikara Roundup
03-Dec-20,Culture & Environment Services,Wwwtudorenvironmentalcou,-13.95 ,Equipment / Furniture / Materials,Refund payment from Tudar environmental
30-Dec-20,Housing & Community Services,Amazon Music,-3.32 ,Equipment / Furniture / Materials,"Accidental purchase, credited back to me"
28-Dec-20,Housing & Community Services,Amazon Music, 3.32 ,Equipment / Furniture / Materials,"Accidental purchase, I made sure to have this credited back"
18-Dec-20,Housing & Community Services,Amazon.Co.Uk, 12.21 ,Equipment / Furniture / Materials,New kettle for Crown Car Park
07-Dec-20,Finance & Revenues,Msft * E0200csuj4, 43.10 ,Housing  - other Costs,O365 E5 licence for conference call dialling
11-Dec-20,Finance & Revenues,Microsoft*365, 20.00 ,Equipment / Furniture / Materials,O365 Power BI licences for data manipulation
31-Dec-20,Finance & Revenues,Pluralsight, 205.32 ,Training Expenses,Online ICT training videos
09-Dec-20,Finance & Revenues,Msft *, 35.07 ,Computer Software - Purchase,Power BI licences
21-Dec-20,Finance & Revenues,Zoom.Us 888-799-9666, 9.99 ,Computer Software - Purchase,Zoom licence for local Plan conference
04-Dec-20,People & Governance,Priory Direct, 109.02 ,Stationery,A4 Perforated Paper Stock for Tenancy Services
10-Dec-20,People & Governance,Amznmktplace, 49.17 ,Stationery,C3 Gusset Envelopes for IP-City
07-Dec-20,People & Governance,Www.Paper.Co.Uk, 323.37 ,Miscellaneous Stock  - Purchases,Specialist paper stocks for the Print Room
10-Dec-20,People & Governance,Www.Banneruk.Com, 242.37 ,Miscellaneous Stock  - Purchases,Various size envelopes for the Print Room use
28-Dec-20,Housing & Community Services,Gen Register Office, 28.00 ,Specific Campaigns / Projects expenditure,birth certificates for 2 customers
24-Dec-20,Housing & Community Services,Amznmktplace, 11.48 ,Stationery,stationery for East Villa
24-Dec-20,Housing & Community Services,Eb *online Course Mana, 85.00 ,Training Expenses,training course
21-Dec-20,Housing & Community Services,Www.Cipfa.Org.Uk, 332.00 ,Employee Expenses,CIPFA membership
03-Dec-20,Housing & Community Services,Dunelm, 160.00 ,Housing  - other Costs,Items for tenant from Dunelm
15-Dec-20,Housing & Community Services,B & Q 1315, 8.00 ,Equipment / Furniture / Materials,Plant for new tenant at Tooks- press event
10-Dec-20,Housing & Community Services,Www.Ucs.Ac.Uk,-45.00 ,Training Expenses,Refund for cancelled training
16-Dec-20,Housing & Community Services,Tvlicensing.Co.Uk,-157.50 ,Miscellaneous Expenses,Refund for TV license
31-Dec-20,Housing & Community Services,Eoe Co-Op, 25.00 ,Equipment / Furniture / Materials,Utility top of tenant in need 
15-Dec-20,Culture & Environment Services,Amznmktplace, 11.65 ,Materials and Supplies - Miscellaneous,christmas stars for the temple
17-Dec-20,Housing & Community Services,Argos Ltd, 317.98 ,Specific Campaigns / Projects expenditure,2 x TV's for 2 Navigator clients for their accommodation
15-Dec-20,Housing & Community Services,Argos Ltd, 359.95 ,Specific Campaigns / Projects expenditure,Electronic goods for RSI clients in their accommodation
16-Dec-20,Housing & Community Services,Argos Ipswich Carr Street, 29.99 ,Specific Campaigns / Projects expenditure,Fire stick for clients TV as no Arial in their accommodatio
07-Dec-20,Culture & Environment Services,Seton, 137.33 ,Reactive Repairs,Fire related signage
10-Dec-20,Corporate Management Team,Currys Online, 104.12 ,Specific Campaigns / Projects expenditure,5 x Kettles for East Villa - new comers self isolating
02-Dec-20,Corporate Management Team,Absolute, 174.66 ,Specific Campaigns / Projects expenditure,Direct line funding - Bedding for East/West Villa
18-Dec-20,Corporate Management Team,Amznmktplace, 83.17 ,Specific Campaigns / Projects expenditure,West Villa residents - Cables for TV aerials
24-Dec-20,Culture & Environment Services,Www.Banneruk.Com, 17.27 ,Stationery,A3 laminating pouches
14-Dec-20,Culture & Environment Services,Screwfix Direct, 12.08 ,Equipment / Furniture / Materials,Adhesive and sealant
11-Dec-20,Culture & Environment Services,Defib Pad, 249.00 ,Materials and Supplies - Miscellaneous,Defib Battery
31-Dec-20,Culture & Environment Services,B&q Direct, 31.85 ,Equipment / Furniture / Materials,Extension leads and drain cleaner.
21-Dec-20,Culture & Environment Services,B & Q 1315, 27.46 ,Cleaning Supplies,Mop handle and bucket for patch testing.
16-Dec-20,Culture & Environment Services,Findel Education, 26.97 ,Cleaning Supplies,Soap dispensers for bluedoor changing
31-Dec-20,Culture & Environment Services,Screwfix Direct, 10.00 ,Equipment / Furniture / Materials,Spray paint for holding boxes.
11-Dec-20,Development,Amznmktplace, 7.00 ,Fixtures & Fittings,new plate
24-Dec-20,Development,Asda Stores 4278, 13.25 ,Reactive Repairs,water needed for tenants
10-Dec-20,Culture & Environment Services,Paypal, 28.23 ,Materials and Supplies - Miscellaneous,Chain saw oil for Rangers
11-Dec-20,Culture & Environment Services,Zurich Insurance, 82.76 ,Development & Maintenance of Natural Areas,Ravenswood wildlife group - ins. renewal
23-Dec-20,Culture & Environment Services,Firstaid4less.Co.Uk, 43.45 ,Materials and Supplies - Miscellaneous,"First aid, antiseptic wipes"
23-Dec-20,Culture & Environment Services,Amazon.Co.Uk, 10.39 ,Direct Transport Costs,Screen wash for HEARS vehicles
31-Dec-20,Culture & Environment Services,Www.Thortful.Com, 3.37 ,Stationery,REDACTED
10-Dec-20,Culture & Environment Services,Machine Mart Ltd, 74.99 ,Equipment / Furniture / Materials,Cleansing
03-Dec-20,Culture & Environment Services,Amazon.Co.Uk, 17.47 ,Stationery,Markers for crews
04-Dec-20,Culture & Environment Services,Amznmktplace Amazon.Co.Uk,-5.60 ,Stationery,Refund for cancelled order
29-Dec-20,Culture & Environment Services,Amznmktplace, 14.72 ,Stationery,Stationery for crews
29-Dec-20,Culture & Environment Services,Sainsburys S/mkts, 0.67 ,Stationery,Stationery for Waste Services
01-Dec-20,Culture & Environment Services,Sainsburys S/mkt, 0.92 ,Materials and Supplies - Miscellaneous,Sundries for Waste Services
07-Dec-20,Culture & Environment Services,Sainsburys S/mkts, 2.58 ,Materials and Supplies - Miscellaneous,Sundries for Waste Services
14-Dec-20,Culture & Environment Services,Sainsburys S/mkt, 8.83 ,Materials and Supplies - Miscellaneous,Sundries for Waste Services
21-Dec-20,Culture & Environment Services,Sainsburys S/mkt, 0.92 ,Materials and Supplies - Miscellaneous,Sundries for Waste Services
03-Dec-20,Culture & Environment Services,Toolstation Uk, 74.98 ,Equipment / Furniture / Materials,Laser measure
10-Dec-20,Culture & Environment Services,Ryman, 5.82 ,Stationery,Marker pens for map ammendments
24-Dec-20,Culture & Environment Services,Coffee Cat, 79.57 ,Catering/Beverages,Meeting 
04-Dec-20,Culture & Environment Services,Proteus Equipment Ltd, 117.00 ,Equipment / Furniture / Materials,Replacement set of lifting keys for Cornhill cover lifter
11-Dec-20,Culture & Environment Services,Lumberjacks, 115.87 ,Materials and Supplies - Miscellaneous,Sleepers/cement/screws - CHRISTCHURCH HUB
18-Dec-20,Culture & Environment Services,Www.Lampshoponline.Co.Uk, 87.00 ,Equipment / Furniture / Materials,changing room lights
23-Dec-20,Culture & Environment Services,Www.Venesta.Co.Uk, 274.47 ,Equipment / Furniture / Materials,cubicle spares
14-Dec-20,Culture & Environment Services,Www.Saving-Light-Bulbs.C, 50.13 ,Equipment / Furniture / Materials,light bulbs for changing rooms
03-Dec-20,Culture & Environment Services,Leisureteq, 143.70 ,Equipment / Furniture / Materials,pool repair parts
16-Dec-20,Culture & Environment Services,Post Office Counter, 3.42 ,Equipment / Furniture / Materials,postage for return
18-Dec-20,Culture & Environment Services,Post Office Counter, 8.32 ,Equipment / Furniture / Materials,postage for returns
28-Dec-20,Finance & Revenues,Cbt Nuggets Llc, 45.05 ,Training Expenses,ICT Training
16-Dec-20,Finance & Revenues,Paypal, 19.98 ,Advertising/Publicity,Domain renewal
04-Dec-20,People & Governance,Arts Marketing Ass, 150.00 ,Advertising/Publicity,AMA Access All Areas pass
17-Dec-20,People & Governance,"Sprout Social, Inc", 728.14 ,Advertising/Publicity,Social Media Management platform
16-Dec-20,People & Governance,Amazon.Co.Uk, 562.00 ,Specific Campaigns / Projects expenditure,REDACTED
02-Dec-20,Culture & Environment Services,Cobblers And Keys Ltd, 36.25 ,Materials and Supplies - Miscellaneous,KEYS CUT WESTERFIELD ROAD TOILETS - CHRISTCHURCH HUB
23-Dec-20,Culture & Environment Services,Lumberjacks, 54.90 ,Equipment / Furniture / Materials,Material for fence - SHERRINGTON
15-Dec-20,Culture & Environment Services,Screwfix Dir. Ltd, 10.82 ,Equipment / Furniture / Materials,Materials for fence repair - PLAY AREA INSPECTOR
10-Dec-20,Culture & Environment Services,Lumberjacks, 61.90 ,Equipment / Furniture / Materials,Posts & Screws - PLAY AREA INSPECTOR
31-Dec-20,Culture & Environment Services,B & Q 1315, 123.75 ,Equipment / Furniture / Materials,Tarmac meltaway Rock Salt - PLAY AREA INSPECTOR
23-Dec-20,Culture & Environment Services,B & Q 1315, 29.17 ,Equipment / Furniture / Materials,Timber - HEATHERHAYS PLAY AREA
03-Dec-20,Culture & Environment Services,Amznmktplace, 34.14 ,Equipment / Furniture / Materials,VACCINE - sanitizer pumps for GSCC
08-Dec-20,Culture & Environment Services,B & Q 1315, 52.08 ,Equipment / Furniture / Materials,Wood for bin installation - Play Area Inspector
22-Dec-20,Culture & Environment Services,Lumberjacks, 122.48 ,Equipment / Furniture / Materials,Wooden Posts/post mix - Sherrington Fence repair
23-Dec-20,Finance & Revenues,Dri*, 84.36 ,Computer Software - Purchase,2 x Licenses for PDF Xchange. PDF Editor
01-Dec-20,Finance & Revenues,Amznmktplace, 35.96 ,Computer Equipment - Purchase,4 x HDMI USB-C Adapters
14-Dec-20,Finance & Revenues,"Probrand Ltd.,", 201.78 ,Equipment / Furniture / Materials,Laptop Risers WFH Users
03-Dec-20,Finance & Revenues,Amazon.Co.Uk, 38.80 ,Computer Equipment - Purchase,Notebook Sleeves ICT Stock
03-Dec-20,Finance & Revenues,Amazon.Co.Uk, 77.60 ,Equipment / Furniture / Materials,Notebook Sleeves ICT Stock
14-Dec-20,Finance & Revenues,"Probrand Ltd.,", 150.80 ,Computer Equipment - Purchase,Replace Jabra Headset
09-Dec-20,Culture & Environment Services,Amznmktplace, 8.32 ,Equipment / Furniture / Materials,Boards for Outdoor Floor Marker Templates
31-Dec-20,Culture & Environment Services,Train With Caws, 84.00 ,Specific Campaigns / Projects expenditure,CAWS Long Covid Course 
11-Dec-20,Culture & Environment Services,Amznmktplace, 20.24 ,Fixtures & Fittings,H&S signage - fire assembly point & arrows
09-Dec-20,Culture & Environment Services,Amznmktplace, 3.32 ,Equipment / Furniture / Materials,Head Mic Covers - Fitness Class Mic/Stereo
30-Dec-20,Culture & Environment Services,Timpson Ltd, 8.75 ,Fixtures & Fittings,Spare Keys Cut - Male Outside Toilet
01-Dec-20,Culture & Environment Services,Tvlicensing.Co.Uk, 157.50 ,Licences & Other Fees,TV Licence Renewal
10-Dec-20,Culture & Environment Services,Bag Agg Ltd, 12.50 ,Materials and Supplies - Miscellaneous,Cement - CHANTRY HUB
14-Dec-20,Culture & Environment Services,Argos Ltd, 24.17 ,Materials and Supplies - Miscellaneous,COAT HANGER FOR WET ROOM - CHANTRY HUB
17-Dec-20,Culture & Environment Services,Screwfix Dir. Ltd, 16.22 ,Materials and Supplies - Miscellaneous,Material for bench installation - HOLYWELLS PARK
07-Dec-20,Culture & Environment Services,Wickes Ipswich, 4.27 ,Materials and Supplies - Miscellaneous,Material for guttering @Chantry Hub
14-Dec-20,Culture & Environment Services,Halfords 0393, 20.83 ,Materials and Supplies - Miscellaneous,Seat covers - CHANTRY HUB
14-Dec-20,Culture & Environment Services,B & Q 1315, 8.33 ,Materials and Supplies - Miscellaneous,Treatment for Planters - CHANTRY HUB
03-Dec-20,Culture & Environment Services,Toms Tree Ties, 621.60 ,Miscellaneous Stock  - Purchases,Tree Fixings for Landscaping
22-Dec-20,Culture & Environment Services,Lumberjacks," 1,154.40 ",Miscellaneous Stock  - Purchases,Tree fixings for landscaping
11-Dec-20,Housing & Community Services,Manutan UK Ltd, 178.98 ,Equipment / Furniture / Materials,COSHH Storage Locker Caretakers Archive store
24-Dec-20,Housing & Community Services,Tesco Pfs 3887, 18.46 ,Equipment / Furniture / Materials,Fuel for small plant machinery
14-Dec-20,Housing & Community Services,Replacement Keys Ltd, 4.92 ,Equipment / Furniture / Materials,Impress stock Locker replacement key 20
10-Dec-20,Housing & Community Services,Replacement Keys Ltd, 7.46 ,Equipment / Furniture / Materials,Impress stock Locker replacement keys 9 & 60
10-Dec-20,Housing & Community Services,Www.Lockandkey.Co.Uk, 7.31 ,Equipment / Furniture / Materials,Impress stock replacement locker keys 11
31-Dec-20,Housing & Community Services,Tesco Store 2748, 132.50 ,Equipment / Furniture / Materials,New Tv for stores CCTV
16-Dec-20,Culture & Environment Services,B & Q 1315, 104.68 ,Miscellaneous Stock  - Purchases,Various Tools - LANDSCAPE TEAM
17-Dec-20,People & Governance,Amazon.Co.Uk, 75.40 ,Computer Consumables and other Minor IT costs, PRINTER CONSUMABLES
07-Dec-20,People & Governance,Amznmktplace, 70.37 ,Computer Consumables and other Minor IT costs, PRINTER CONSUMABLES
21-Dec-20,People & Governance,Amazon.Co.Uk, 21.65 ,Computer Consumables and other Minor IT costs, PRINTER CONSUMABLES
11-Dec-20,Culture & Environment Services,Toolstation Ltd, 24.02 ,Miscellaneous Stock  - Purchases,Materials fro bench installation - LANDSCAPE TEAM
07-Dec-20,Culture & Environment Services,Lumberjacks, 93.62 ,Materials and Supplies - Miscellaneous,Sleepers - CHRISTCHURCH HUB
17-Dec-20,Culture & Environment Services,Kings, 12.50 ,Materials and Supplies - Miscellaneous,3 x keys cut
02-Dec-20,Culture & Environment Services,B & Q 1315, 24.58 ,Materials and Supplies - Miscellaneous,Bags of Postcrete and Euro Profile CYL BRS FIN
23-Dec-20,Culture & Environment Services,Screwfix Direct, 30.21 ,Materials and Supplies - Miscellaneous,Black Cable Ties 100 pack x 5
23-Dec-20,Culture & Environment Services,Kings, 43.75 ,Materials and Supplies - Miscellaneous,key cutting and accessories x 15
11-Dec-20,Housing & Community Services,Www.Ciob.Org.Uk, 210.83 ,Non Contracted_Professional Services,CIOB accreditation for Mr Steven Hough
